fUSD/lending_fUSD_20240407
["ID","MTS","AMOUNT","RATE_DAILY","PERIOD"]
[321809225,1712533807929,-536.62,0.00020979,2]
[321809226,1712533807961,-536.62,0.00020979,2]
[321809227,1712533807993,-929.74,0.00020979,2]
[321809228,1712533808023,-929.74,0.00020979,2]
[321809229,1712533808055,-929.74,0.00020979,2]
[321809230,1712533808088,-27742.31,0.00020979,2]
[321809231,1712533808122,-500.0,0.00020979,2]
[321809232,1712533808154,-27742.31,0.00020979,2]
[321809233,1712533808185,-500.0,0.00020979,2]
[321809234,1712533808217,-500.0,0.00020979,2]
[321809235,1712533808248,-500.0,0.00020979,2]
[321809236,1712533808281,-500.0,0.00020979,2]
[321809237,1712533808313,-500.0,0.00020979,2]
[321809238,1712533808342,-589.72,0.00020979,2]
[321809239,1712533808371,-589.72,0.00020979,2]
[321809240,1712533808398,-518.25,0.00020979,2]
[321809241,1712533808427,-464451.43597424,0.0002098,2]
[321809242,1712533808455,-3634.0104,0.0002099,2]
[321809243,1712533808484,-1014.69,0.00020995,2]
[321809244,1712533808512,-500.0,0.00020995,2]
[321809245,1712533808542,-500.0,0.00020995,2]
[321809246,1712533808571,-500.0,0.00020995,2]
[321809247,1712533808602,-639.45,0.00020995,2]
[321809248,1712533808634,-500.0,0.00020995,2]
[321809249,1712533808664,-500.0,0.00020995,2]
[321809250,1712533808693,-500.0,0.00020995,2]
[321809251,1712533808726,-500.0,0.00020995,2]
[321809252,1712533808755,-917.19,0.00020995,2]
[321809253,1712533808787,-1097.49,0.00020995,2]
[321809254,1712533808824,-736.15,0.00020995,2]
[321809255,1712533808853,-500.0,0.00020995,2]
[321809256,1712533808886,-500.0,0.00020995,2]
[321809257,1712533808915,-526.39,0.00020995,2]
[321809258,1712533808945,-500.0,0.00020995,2]
[321809259,1712533808974,-500.0,0.00020995,2]
[321809260,1712533809005,-660.05,0.00020995,2]
[321809261,1712533809035,-633.57,0.00020995,2]
[321809262,1712533809065,-782.81,0.00020995,2]
[321809263,1712533809095,-500.0,0.00020995,2]
[321809264,1712533809126,-1429.83,0.00020995,2]
[321809265,1712533809156,-500.0,0.00020995,2]
[321809266,1712533809185,-500.0,0.00020995,2]
[321809267,1712533809215,-950.89,0.00020995,2]
[321809268,1712533809248,-909.05,0.00020995,2]
[321809269,1712533809278,-1959.01,0.00020995,2]
[321809270,1712533809310,-500.0,0.00020995,2]
[321809271,1712533809342,-653.02,0.00020995,2]
[321809272,1712533809371,-608.01,0.00020995,2]
[321809273,1712533809405,-1085.69,0.00020995,2]
[321809274,1712533809436,-4657.27,0.00020995,2]
[321809275,1712533809467,-500.0,0.00020995,2]
[321809276,1712533809498,-500.0,0.00020995,2]
[321809277,1712533809529,-500.0,0.00020995,2]
[321809278,1712533809562,-500.0,0.00020995,2]
[321809279,1712533809595,-2380.41,0.00020995,2]
[321809280,1712533809627,-591.33,0.00020995,2]
[321809281,1712533809658,-408.90112987,0.00020995,2]
[321809282,1712533809688,-500.88,0.00020995,2]
[321809283,1712533809723,-2419.91,0.00020995,2]
[321809284,1712533809756,-500.0,0.00020995,2]
[321809285,1712533809789,-1192.67,0.00020995,2]
[321809286,1712533809820,-656.72,0.00020995,2]
[321809287,1712533809852,-1431.08,0.00020995,2]
[321809288,1712533809885,-861.24,0.00020995,2]
[321809289,1712533809916,-1353.03,0.00020995,2]
[321809290,1712533809946,-1236.59,0.00020995,2]
[321809291,1712533809976,-322.93316903,0.00020995,2]
[321809292,1712533810006,-500.0,0.00020995,2]
[321809293,1712533810036,-2144.48,0.00020995,2]
[321809294,1712533810067,-1295.12,0.00020995,2]
[321809295,1712533810100,-2601.87,0.00020995,2]
[321809296,1712533810132,-827.01840755,0.00020995,2]
[321809297,1712533830183,-1743.70839054,0.0002,2]
[321809298,1712533830203,-893.10961686,0.00020878,2]
[321809299,1712533830224,-164.61598847,0.00020878,2]
[321809300,1712533830244,-164.61598843,0.00020882,2]
[321809301,1712533830265,-164.61598843,0.00020885,2]
[321809302,1712533830285,-893.10961684,0.00020889,2]
[321809303,1712533830305,-893.10961684,0.00020899,2]
[321809304,1712533830326,-157.040808,0.00020908,2]
[321809305,1712533830348,-157.040808,0.00020908,2]
[321809306,1712533830370,-157.040808,0.00020908,2]
[321809307,1712533830393,-157.040808,0.00020908,2]
[321809308,1712533830413,-157.040808,0.00020908,2]
[321809309,1712533830434,-157.040808,0.00020908,2]
[321809310,1712533830454,-157.040808,0.00020908,2]
[321809311,1712533830474,-157.040808,0.00020908,2]
[321809312,1712533830495,-157.040808,0.00020908,2]
[321809313,1712533830516,-157.040808,0.00020908,2]
[321809314,1712533830537,-157.040808,0.00020908,2]
[321809315,1712533830558,-157.040808,0.00020908,2]
[321809316,1712533830580,-157.040808,0.00020908,2]
[321809317,1712533830601,-35.51314806,0.00020975,2]
[321809345,1712533833613,-164.61598843,0.00020889,2]
[321809346,1712533833634,-164.61598843,0.00020893,2]
[321809347,1712533833656,-164.61598843,0.00020896,2]
[321809348,1712533833676,-464.48685194,0.00020975,2]
[321809349,1712533833702,-500.0,0.00020975,2]
[321809350,1712533833726,-500.0,0.00020976,2]
[321809351,1712533833747,-500.0,0.00020976,2]
[321809352,1712533833767,-150.0,0.00020976,2]
[321809353,1712533833787,-500.0,0.00020976,2]
[321809354,1712533833807,-500.0,0.00020976,2]
[321809355,1712533833827,-500.0,0.00020976,2]
[321809356,1712533833848,-500.0,0.00020976,2]
[321809357,1712533833869,-500.0,0.00020976,2]
[321809358,1712533833892,-1825.52948277,0.00020976,2]
[321809359,1712533833994,-825.98051723,0.00020976,2]
[321809360,1712533834015,-343.56438934,0.00020976,2]
[321809361,1712533834036,-326.50550398,0.00020976,2]
[321809362,1712533834057,-544.63380411,0.00020976,2]
[321809363,1712533834078,-500.0,0.00020976,2]
[321809364,1712533834099,-500.0,0.00020976,2]
[321809365,1712533834119,-326.50550398,0.00020976,2]
[321809366,1712533834141,-266.72588136,0.00020976,2]
[321809439,1712533849576,-333.14997205,0.00020879,2]
[321809440,1712533849585,-164.61598843,0.000209,2]
[321809441,1712533849594,-272.70660815,0.00020976,2]
[321809442,1712533849625,-88.04751049,0.00020976,2]
[321809443,1712533849634,-239.66,0.00020976,2]
[321809444,1712533849644,-500.0,0.00020976,2]
[321809445,1712533849654,-500.0,0.00020976,2]
[321809446,1712533849663,-500.0,0.00020976,2]
[321809447,1712533849673,-500.0,0.00020976,2]
[321809448,1712533849682,-204.40878951,0.00020976,2]
[321809449,1712533849694,-295.59121049,0.00020976,2]
[321809450,1712533849702,-512.34398555,0.00020976,2]
[321809451,1712533849715,-500.0,0.00020976,2]
[321809452,1712533849724,-500.0,0.00020976,2]
[321809453,1712533849733,-261.21405124,0.00020976,2]
[321809454,1712533849742,-180.85075272,0.00020976,2]
[321809455,1712533851055,-573.45,0.00020975,2]
[321809456,1712533851065,-319.14924728,0.00020976,2]
[321809457,1712533851074,-500.0,0.00020976,2]
[321809458,1712533851084,-500.0,0.00020976,2]
[321809459,1712533851093,-500.0,0.00020976,2]
[321809460,1712533851102,-540.23,0.00020976,2]
[321809461,1712533851112,-500.17075273,0.00020976,2]
[321809462,1712533851125,-40.05924727,0.00020976,2]
[321809463,1712533851134,-500.0,0.00020976,2]
[321809464,1712533851144,-500.0,0.00020976,2]
[321809465,1712533851153,-500.0,0.00020976,2]
[321809466,1712533851163,-564.72,0.00020976,2]
[321809467,1712533851173,-913.31,0.00020976,2]
[321809468,1712533851182,-913.31,0.00020976,2]
[321809469,1712533851191,-278.51205556,0.00020976,2]
[321809470,1712533851230,-558.95158462,0.00020976,2]
[321809471,1712533851241,-692.24635982,0.00020976,2]
[321809472,1712533851250,-500.0,0.00020976,2]
[321809473,1712533851260,-500.0,0.00020976,2]
[321809474,1712533851269,-598.3,0.00020976,2]
[321809475,1712533851278,-598.3,0.00020976,2]
[321809476,1712533851287,-573.45,0.00020976,2]
[321809477,1712533851297,-573.45,0.00020976,2]
[321809478,1712533851307,-500.0,0.00020977,2]
[321809479,1712533851317,-500.0,0.00020977,2]
[321809480,1712533851327,-500.0,0.00020977,2]
[321809481,1712533851336,-500.0,0.00020977,2]
[321809482,1712533851346,-500.0,0.00020977,2]
[321809483,1712533851355,-250.25364018,0.00020977,2]
[321809484,1712533851372,-249.74635982,0.00020977,2]
[321809485,1712533851381,-500.0,0.00020977,2]
[321809486,1712533851391,-500.0,0.00020977,2]
[321809487,1712533851400,-609.3,0.00020977,2]
[321809488,1712533851411,-609.3,0.00020977,2]
[321809489,1712533851420,-497.48353283,0.00020977,2]
[321809490,1712533851430,-500.0,0.00020977,2]
[321809491,1712533851440,-500.0,0.00020977,2]
[321809492,1712533851449,-500.0,0.00020977,2]
[321809493,1712533851458,-500.0,0.00020977,2]
[321809494,1712533851468,-294.88,0.00020977,2]
[321809495,1712533851477,-500.0,0.00020977,2]
[321809496,1712533851487,-373.54327476,0.00020977,2]
[321809497,1712533851497,-500.0,0.00020977,2]
[321809498,1712533851507,-500.0,0.00020977,2]
[321809499,1712533851517,-500.0,0.00020977,2]
[321809500,1712533851527,-500.0,0.00020977,2]
[321809501,1712533851537,-500.0,0.00020977,2]
[321809502,1712533851546,-500.0,0.00020977,2]
[321809503,1712533851556,-500.0,0.00020977,2]
[321809504,1712533851567,-500.0,0.00020977,2]
[321809505,1712533851577,-500.0,0.00020977,2]
[321809506,1712533851586,-500.0,0.00020977,2]
[321809507,1712533851595,-500.0,0.00020977,2]
[321809508,1712533851605,-500.0,0.00020977,2]
[321809509,1712533851615,-500.0,0.00020977,2]
[321809510,1712533851625,-639.08,0.00020977,2]
[321809511,1712533851636,-502.01312753,0.00020977,2]
[321809512,1712533851646,-32660.27,0.00020977,2]
[321809513,1712533851660,-32660.27,0.00020977,2]
[321809514,1712533851671,-32660.27,0.00020977,2]
[321809515,1712533851682,-32660.27,0.00020977,2]
[321809516,1712533851693,-32660.27,0.00020977,2]
[321809517,1712533851703,-32660.27,0.00020977,2]
[321809518,1712533851718,-32660.27,0.00020977,2]
[321809519,1712533851729,-32660.27,0.00020977,2]
[321809520,1712533851739,-32660.27,0.00020977,2]
[321809521,1712533851750,-583.28896667,0.00020977,2]
[321809522,1712533851761,-511.19466436,0.00020977,2]
[321809523,1712533851773,-500.0,0.00020977,2]
[321809524,1712533851784,-500.0,0.00020977,2]
[321809525,1712533851799,-507.58404361,0.00020977,2]
[321809526,1712533851810,-506.73053373,0.00020977,2]
[321809527,1712533851822,-500.0,0.00020977,2]
[321809528,1712533851832,-500.0,0.00020977,2]
[321809529,1712533851843,-500.0,0.00020977,2]
[321809530,1712533851853,-500.0,0.00020977,2]
[321809531,1712533851864,-500.0,0.00020977,2]
[321809532,1712533851874,-540.23,0.00020977,2]
[321809533,1712533851887,-540.23,0.00020977,2]
[321809534,1712533851898,-540.23,0.00020977,2]
[321809535,1712533851908,-540.23,0.00020977,2]
[321809536,1712533851919,-540.23,0.00020977,2]
[321809537,1712533851929,-1075.21,0.00020977,2]
[321809538,1712533851940,-500.0,0.00020977,2]
[321809539,1712533851950,-1075.21,0.00020977,2]
[321809540,1712533851960,-500.0,0.00020977,2]
[321809541,1712533851970,-500.0,0.00020977,2]
[321809542,1712533851980,-500.0,0.00020977,2]
[321809543,1712533851992,-500.0,0.00020977,2]
[321809544,1712533852003,-500.0,0.00020977,2]
[321809545,1712533852015,-500.0,0.00020977,2]
[321809546,1712533852026,-500.0,0.00020977,2]
[321809547,1712533852037,-500.0,0.00020977,2]
[321809548,1712533852048,-1168.98,0.00020977,2]
[321809549,1712533852058,-1168.98,0.00020977,2]
[321809550,1712533852069,-1168.98,0.00020977,2]
[321809551,1712533852079,-1168.98,0.00020977,2]
[321809552,1712533852090,-1168.98,0.00020977,2]
[321809553,1712533852100,-1168.98,0.00020977,2]
[321809554,1712533852111,-1168.98,0.00020977,2]
[321809555,1712533852121,-500.0,0.00020977,2]
[321809556,1712533852134,-1168.98,0.00020977,2]
[321809557,1712533852148,-500.0,0.00020977,2]
[321809558,1712533852159,-1168.98,0.00020977,2]
[321809559,1712533852171,-500.0,0.00020977,2]
[321809560,1712533852182,-258.79045165,0.00020977,2]
[321809561,1712533852193,-500.0,0.00020977,2]
[321809562,1712533852205,-500.0,0.00020977,2]
[321809563,1712533852216,-500.0,0.00020977,2]
[321809564,1712533852226,-500.0,0.00020977,2]
[321809565,1712533852237,-661.82,0.00020977,2]
[321809566,1712533852247,-661.82,0.00020977,2]
[321809567,1712533852258,-500.0,0.00020977,2]
[321809568,1712533852269,-500.0,0.00020977,2]
[321809569,1712533852279,-500.0,0.00020977,2]
[321809570,1712533852290,-500.0,0.00020977,2]
[321809571,1712533852301,-500.0,0.00020977,2]
[321809572,1712533852311,-500.0,0.00020977,2]
[321809573,1712533852322,-500.0,0.00020977,2]
[321809574,1712533852333,-500.0,0.00020977,2]
[321809575,1712533852343,-500.0,0.00020977,2]
[321809576,1712533852354,-500.0,0.00020977,2]
[321809577,1712533852364,-500.0,0.00020977,2]
[321809578,1712533852373,-913.31,0.00020977,2]
[321809579,1712533852383,-913.31,0.00020977,2]
[321809580,1712533852394,-913.31,0.00020977,2]
[321809581,1712533852406,-1529.71,0.00020977,2]
[321809582,1712533852416,-1529.71,0.00020977,2]
[321809583,1712533852430,-1529.71,0.00020977,2]
[321809584,1712533852440,-1529.71,0.00020977,2]
[321809585,1712533852451,-913.31,0.00020977,2]
[321809586,1712533852462,-913.31,0.00020977,2]
[321809587,1712533852472,-500.0,0.00020977,2]
[321809588,1712533852483,-500.0,0.00020977,2]
[321809589,1712533852492,-500.0,0.00020977,2]
[321809590,1712533852503,-500.0,0.00020977,2]
[321809591,1712533852513,-801.68,0.00020977,2]
[321809592,1712533852523,-1244.72,0.00020977,2]
[321809593,1712533852534,-500.0,0.00020977,2]
[321809594,1712533852544,-801.68,0.00020977,2]
[321809595,1712533852555,-500.0,0.00020977,2]
[321809596,1712533852565,-1244.72,0.00020977,2]
[321809597,1712533852577,-500.0,0.00020977,2]
[321809598,1712533852587,-500.0,0.00020977,2]
[321809599,1712533852600,-500.0,0.00020977,2]
[321809600,1712533852610,-598.3,0.00020977,2]
[321809601,1712533852621,-598.3,0.00020977,2]
[321809602,1712533852633,-573.45,0.00020977,2]
[321809603,1712533852644,-598.3,0.00020977,2]
[321809604,1712533852656,-500.0,0.00020977,2]
[321809605,1712533852665,-573.45,0.00020977,2]
[321809606,1712533852674,-598.3,0.00020977,2]
[321809607,1712533852685,-500.0,0.00020977,2]
[321809608,1712533852695,-573.45,0.00020977,2]
[321809609,1712533852706,-598.3,0.00020977,2]
[321809610,1712533852718,-573.45,0.00020977,2]
[321809611,1712533852729,-573.45,0.00020977,2]
[321809612,1712533852739,-573.45,0.00020977,2]
[321809613,1712533852751,-573.45,0.00020977,2]
[321809614,1712533852761,-573.45,0.00020977,2]
[321809615,1712533852771,-500.0,0.00020977,2]
[321809616,1712533852781,-500.0,0.00020977,2]
[321809617,1712533852792,-1897.24,0.00020978,2]
[321809618,1712533852802,-500.0,0.00020978,2]
[321809619,1712533852812,-500.0,0.00020978,2]
[321809620,1712533852821,-500.0,0.00020978,2]
[321809621,1712533852831,-500.0,0.00020978,2]
[321809622,1712533852841,-500.0,0.00020978,2]
[321809623,1712533852851,-500.0,0.00020978,2]
[321809624,1712533852862,-500.0,0.00020978,2]
[321809625,1712533852873,-500.0,0.00020978,2]
[321809626,1712533852883,-500.0,0.00020978,2]
[321809627,1712533852893,-500.0,0.00020978,2]
[321809628,1712533852905,-500.0,0.00020978,2]
[321809629,1712533852916,-500.0,0.00020978,2]
[321809630,1712533852925,-639.56655225,0.00020978,2]
[321809631,1712533852936,-500.0,0.00020978,2]
[321809632,1712533852945,-500.0,0.00020978,2]
[321809633,1712533852955,-500.0,0.00020978,2]
[321809634,1712533852966,-609.3,0.00020978,2]
[321809635,1712533852975,-609.3,0.00020978,2]
[321809636,1712533852985,-609.3,0.00020978,2]
[321809637,1712533852996,-609.3,0.00020978,2]
[321809638,1712533853007,-609.3,0.00020978,2]
[321809639,1712533853017,-609.3,0.00020978,2]
[321809640,1712533853027,-500.0,0.00020978,2]
[321809641,1712533853038,-500.0,0.00020978,2]
[321809642,1712533853048,-500.0,0.00020978,2]
[321809643,1712533853058,-500.0,0.00020978,2]
[321809644,1712533853069,-500.0,0.00020978,2]
[321809645,1712533853079,-500.0,0.00020978,2]
[321809646,1712533853089,-500.0,0.00020978,2]
[321809647,1712533853099,-500.0,0.00020978,2]
[321809648,1712533853109,-500.0,0.00020978,2]
[321809649,1712533853119,-500.0,0.00020978,2]
[321809650,1712533853130,-500.0,0.00020978,2]
[321809651,1712533853140,-500.0,0.00020978,2]
[321809652,1712533853150,-500.0,0.00020978,2]
[321809653,1712533853161,-500.0,0.00020978,2]
[321809654,1712533853171,-551.6724761,0.00020978,2]
[321809655,1712533853181,-500.0,0.00020978,2]
[321809656,1712533853192,-500.0,0.00020978,2]
[321809657,1712533853202,-500.0,0.00020978,2]
[321809658,1712533853212,-500.0,0.00020978,2]
[321809659,1712533853222,-500.0,0.00020978,2]
[321809660,1712533853232,-500.0,0.00020978,2]
[321809661,1712533853243,-515.39125437,0.00020978,2]
[321809662,1712533853253,-523.20383365,0.00020978,2]
[321809663,1712533853264,-32660.27,0.00020978,2]
[321809664,1712533853275,-32660.27,0.00020978,2]
[321809665,1712533853286,-32660.27,0.00020978,2]
[321809666,1712533853296,-32660.27,0.00020978,2]
[321809667,1712533853306,-32660.27,0.00020978,2]
[321809668,1712533853315,-32660.27,0.00020978,2]
[321809669,1712533853325,-545.41,0.00020978,2]
[321809670,1712533853335,-603.79,0.00020978,2]
[321809671,1712533853346,-500.0,0.00020978,2]
[321809672,1712533853358,-363.87926774,0.00020978,2]
[321809673,1712533853367,-540.23,0.00020978,2]
[321809674,1712533853375,-540.23,0.00020978,2]
[321809675,1712533853385,-540.23,0.00020978,2]
[321809676,1712533853394,-540.23,0.00020978,2]
[321809677,1712533853404,-1075.21,0.00020978,2]
[321809678,1712533853414,-540.23,0.00020978,2]
[321809679,1712533853424,-1075.21,0.00020978,2]
[321809680,1712533853434,-540.23,0.00020978,2]
[321809681,1712533853443,-1075.21,0.00020978,2]
[321809682,1712533853452,-540.23,0.00020978,2]
[321809683,1712533853462,-1075.21,0.00020978,2]
[321809684,1712533853472,-540.23,0.00020978,2]
[321809685,1712533853481,-1075.21,0.00020978,2]
[321809686,1712533853490,-1075.21,0.00020978,2]
[321809687,1712533853500,-500.0,0.00020978,2]
[321809688,1712533853509,-1020.17,0.00020978,2]
[321809689,1712533853518,-500.0,0.00020978,2]
[321809690,1712533853527,-500.0,0.00020978,2]
[321809691,1712533853537,-500.0,0.00020978,2]
[321809692,1712533853546,-500.0,0.00020978,2]
[321809693,1712533853555,-629.49,0.00020978,2]
[321809694,1712533853564,-1168.98,0.00020978,2]
[321809695,1712533853573,-1168.98,0.00020978,2]
[321809696,1712533853582,-1168.98,0.00020978,2]
[321809697,1712533853590,-1168.98,0.00020978,2]
[321809698,1712533853599,-1168.98,0.00020978,2]
[321809699,1712533853608,-1168.98,0.00020978,2]
[321809700,1712533853617,-500.0,0.00020978,2]
[321809701,1712533853626,-500.0,0.00020978,2]
[321809702,1712533853635,-500.0,0.00020978,2]
[321809703,1712533853644,-500.0,0.00020978,2]
[321809704,1712533853654,-500.0,0.00020978,2]
[321809705,1712533853664,-965.99,0.00020978,2]
[321809706,1712533853673,-661.82,0.00020978,2]
[321809707,1712533853682,-661.82,0.00020978,2]
[321809708,1712533853691,-661.82,0.00020978,2]
[321809709,1712533853700,-661.82,0.00020978,2]
[321809710,1712533853710,-314.11973352,0.00020978,2]
[321809711,1712533853723,-661.82,0.00020978,2]
[321809712,1712533853732,-661.82,0.00020978,2]
[321809713,1712533853742,-500.0,0.00020978,2]
[321809714,1712533853751,-500.0,0.00020978,2]
[321809715,1712533853761,-500.0,0.00020978,2]
[321809716,1712533853770,-500.0,0.00020978,2]
[321809717,1712533853780,-500.0,0.00020978,2]
[321809718,1712533853790,-500.0,0.00020978,2]
[321809719,1712533853799,-500.0,0.00020978,2]
[321809720,1712533853808,-1529.71,0.00020978,2]
[321809721,1712533853818,-1529.71,0.00020978,2]
[321809722,1712533853827,-913.31,0.00020978,2]
[321809723,1712533853837,-913.31,0.00020978,2]
[321809724,1712533853847,-1529.71,0.00020978,2]
[321809725,1712533853857,-913.31,0.00020978,2]
[321809726,1712533853866,-1529.71,0.00020978,2]
[321809727,1712533853875,-913.31,0.00020978,2]
[321809728,1712533853885,-1529.71,0.00020978,2]
[321809729,1712533853895,-913.31,0.00020978,2]
[321809730,1712533853904,-1529.71,0.00020978,2]
[321809731,1712533853914,-913.31,0.00020978,2]
[321809732,1712533853923,-1529.71,0.00020978,2]
[321809733,1712533853932,-913.31,0.00020978,2]
[321809734,1712533853942,-913.31,0.00020978,2]
[321809735,1712533853951,-801.68,0.00020978,2]
[321809736,1712533853961,-1244.72,0.00020978,2]
[321809737,1712533853971,-801.68,0.00020978,2]
[321809738,1712533853980,-801.68,0.00020978,2]
[321809739,1712533853989,-1244.72,0.00020978,2]
[321809740,1712533853998,-801.68,0.00020978,2]
[321809741,1712533854008,-500.0,0.00020978,2]
[321809742,1712533854017,-1244.72,0.00020978,2]
[321809743,1712533854027,-801.68,0.00020978,2]
[321809744,1712533854036,-500.0,0.00020978,2]
[321809745,1712533854045,-1244.72,0.00020978,2]
[321809746,1712533854054,-801.68,0.00020978,2]
[321809747,1712533854063,-500.0,0.00020978,2]
[321809748,1712533854073,-1244.72,0.00020978,2]
[321809749,1712533854082,-500.0,0.00020978,2]
[321809750,1712533854091,-1244.72,0.00020978,2]
[321809751,1712533854100,-500.0,0.00020978,2]
[321809752,1712533854117,-500.0,0.00020978,2]
[321809753,1712533854130,-598.3,0.00020978,2]
[321809754,1712533854139,-598.3,0.00020978,2]
[321809755,1712533854149,-598.3,0.00020978,2]
[321809756,1712533854158,-598.3,0.00020978,2]
[321809757,1712533854167,-598.3,0.00020978,2]
[321809758,1712533854176,-573.45,0.00020978,2]
[321809759,1712533854187,-598.3,0.00020978,2]
[321809760,1712533854197,-598.3,0.00020978,2]
[321809761,1712533854208,-573.45,0.00020978,2]
[321809762,1712533854218,-518.25,0.00020979,2]
[321809763,1712533854228,-1897.24,0.00020979,2]
[321809764,1712533854238,-1897.24,0.00020979,2]
[321809765,1712533854247,-1897.24,0.00020979,2]
[321809766,1712533854257,-500.0,0.00020979,2]
[321809767,1712533854268,-500.0,0.00020979,2]
[321809768,1712533854278,-500.0,0.00020979,2]
[321809769,1712533854287,-500.0,0.00020979,2]
[321809770,1712533854296,-500.0,0.00020979,2]
[321809771,1712533854591,-500.0,0.00020979,2]
[321809772,1712533854602,-500.0,0.00020979,2]
[321809773,1712533854612,-500.0,0.00020979,2]
[321809774,1712533854622,-500.0,0.00020979,2]
[321809775,1712533854631,-609.3,0.00020979,2]
[321809776,1712533854641,-609.3,0.00020979,2]
[321809777,1712533854650,-500.0,0.00020979,2]
[321809778,1712533854661,-609.3,0.00020979,2]
[321809779,1712533854670,-500.0,0.00020979,2]
[321809780,1712533854678,-608.4,0.00020979,2]
[321809781,1712533854687,-500.0,0.00020979,2]
[321809782,1712533854697,-500.0,0.00020979,2]
[321809783,1712533854706,-500.0,0.00020979,2]
[321809784,1712533854718,-500.0,0.00020979,2]
[321809785,1712533854727,-500.0,0.00020979,2]
[321809786,1712533854735,-500.0,0.00020979,2]
[321809787,1712533854745,-500.0,0.00020979,2]
[321809788,1712533854755,-500.0,0.00020979,2]
[321809789,1712533854763,-500.0,0.00020979,2]
[321809790,1712533854772,-654.03763,0.00020979,2]
[321809791,1712533854781,-500.0,0.00020979,2]
[321809792,1712533854793,-500.0,0.00020979,2]
[321809793,1712533854802,-500.0,0.00020979,2]
[321809794,1712533854811,-32660.27,0.00020979,2]
[321809795,1712533854820,-32660.27,0.00020979,2]
[321809796,1712533854830,-545.41,0.00020979,2]
[321809797,1712533854839,-545.41,0.00020979,2]
[321809798,1712533854849,-603.79,0.00020979,2]
[321809799,1712533854858,-603.79,0.00020979,2]
[321809800,1712533854867,-500.0,0.00020979,2]
[321809801,1712533854877,-540.23,0.00020979,2]
[321809802,1712533854887,-540.23,0.00020979,2]
[321809803,1712533854897,-1075.21,0.00020979,2]
[321809804,1712533854907,-1075.21,0.00020979,2]
[321809805,1712533854917,-1075.21,0.00020979,2]
[321809806,1712533854926,-1020.17,0.00020979,2]
[321809807,1712533854936,-1020.17,0.00020979,2]
[321809808,1712533854945,-1168.98,0.00020979,2]
[321809809,1712533854955,-1168.98,0.00020979,2]
[321809810,1712533854964,-500.0,0.00020979,2]
[321809811,1712533854973,-500.0,0.00020979,2]
[321809812,1712533854982,-965.99,0.00020979,2]
[321809813,1712533854991,-965.99,0.00020979,2]
[321809814,1712533855000,-661.82,0.00020979,2]
[321809815,1712533855010,-661.82,0.00020979,2]
[321809816,1712533855019,-661.82,0.00020979,2]
[321809817,1712533855029,-500.0,0.00020979,2]
[321809818,1712533855038,-500.0,0.00020979,2]
[321809819,1712533855047,-500.0,0.00020979,2]
[321809820,1712533855056,-500.0,0.00020979,2]
[321809821,1712533855066,-1529.71,0.00020979,2]
[321809822,1712533855075,-1529.71,0.00020979,2]
[321809823,1712533855085,-913.31,0.00020979,2]